Cogmind - Beta 13 @@@ ROGUE MODE // 2024.05.08 @ 22:26:44 Player: orthostice Result: Destroyed by D-53 Grenadier with Mini Grenade Launcher Performance ------------- Evolutions (0) 0 Regions Visited (4) 800 Robots Destroyed (22) 110 Value Destroyed (590) 590 Prototype IDs (2) 40 Alien Tech Used (0) 0 Bonus (0) 0 TOTAL SCORE: 1540 Bonus ------- None Cogmind --------- Core Integrity 0/250 Matter 224/300 Energy 125/125 System Corruption 0% Temperature Cool (0) Movement Treading (160) Location -9/Mines Parts ------- > --- POWER (1) -------- Light Ion Engine > --- PROPULSION (2) --- Light Treads Light Treads > --- UTILITY (2) ------ Medium Storage Unit Targeting Computer > --- WEAPON (2) ------- (None) > --- INVENTORY (10) --- Light Nuclear Core Light Treads Improved Heat Sink Small Storage Unit Signal Interpreter Light Armor Plating Hacking Suite Beam Rifle Autogun Light Cannon Peak State ------------ > --- POWER ------------ Light Ion Engine > --- PROPULSION ------- Light Treads Light Treads > --- UTILITY ---------- Medium Storage Unit Targeting Computer > --- WEAPON ----------- Makeshift Shrapnel Gun Rocket Launcher > --- INVENTORY -------- Light Nuclear Core Light Treads Improved Heat Sink Small Storage Unit Signal Interpreter Light Armor Plating Hacking Suite Beam Rifle Autogun Light Cannon [Rating: 12] Favorites ----------- Power Light Ion Engine Engine Light Ion Engine Propulsion Light Treads Treads Light Treads Leg Aluminum Leg Utility Targeting Computer Storage Medium Storage Unit Processor Targeting Computer Weapon Light Cannon Energy Gun EM Pulse Gun Ballistic Gun Light Assault Rifle Ballistic Cannon Light Cannon Launcher Rocket Launcher Special Weapon Mining Laser Build | -11 -10 -10 -10 -9 ------- Run | Yrd Mat Min Exi Min Slots Evolved . | . . . . . Power . | . . . . . Propulsion . | . . . . . Utility . | . . . . . Weapon . | . . . . . Parts Attached 21 | 7 5 5 3 1 Power 2 | 1 . 1 . . Engine 2 | 1 . 1 . . Core . | . . . . . Reactor . | . . . . . Propulsion 7 | 2 1 2 2 . Treads 5 | 2 1 . 2 . Leg 2 | . . 2 . . Wheel . | . . . . . Hover . | . . . . . Flight . | . . . . . Utility 3 | 1 2 . . . Device . | . . . . . Storage 2 | 1 1 . . . Processor 1 | . 1 . . . Hackware . | . . . . . Protection . | . . . . . Artifact . | . . . . . Weapon 9 | 3 2 2 1 1 Energy Gun 3 | 2 1 . . . Energy Cannon . | . . . . . Ballistic Gun 3 | 1 . 1 1 . Ballistic Cannon 1 | . 1 . . . Launcher 1 | . . . . 1 Special Weapon 1 | . . 1 . . Impact Weapon . | . . . . . Slashing Weapon . | . . . . . Piercing Weapon . | . . . . . Special Melee Weapon . | . . . . . Unidentified Prototypes . | . . . . . Parts Lost 5 | . 2 1 . 2 Power . | . . . . . Propulsion 2 | . 1 1 . . Utility . | . . . . . Weapon 3 | . 1 . . 2 Highest Loss Streak 2 | . 1 1 . 2 To Critical Strikes . | . . . . . Average Slot Usage (%) 97 | . 95 99 99 100 Engine 14 | . 14 14 14 14 Treads 21 | . 28 1 19 28 Leg 6 | . . 25 8 . Storage 14 | . 14 14 14 14 Processor 12 | . 9 14 14 14 Energy Gun 3 | . 9 . . . Ballistic Gun 13 | . 14 13 14 14 Ballistic Cannon 10 | . 4 14 14 11 Naked Turns . | . . . . . Heaviest Build 19 | 12 17 17 18 19 Greatest Support 40 | 40 40 20 40 40 Greatest Overweight (x) 5 | 2 . . 5 . Average Overweight (x) . | . . . . . Largest Inventory Capacity 10 | 8 10 10 10 10 Average Capacity 9 | 7 8 10 10 10 Most Carried 10 | 4 9 10 10 10 Average Carried 8 | 3 7 8 9 10 Final Capacity 10 | 8 10 10 10 10 Final Carried 10 | 4 9 10 10 10 Class Distribution -------------------- 100% | Mutant Dominant Class ---------------- Mutant | -10/Materials Mutant | -10/Mines Mutant | -10/Exiles Mutant | -9/Mines Resources | -11 -10 -10 -10 -9 ----------- Run | Yrd Mat Min Exi Min Matter Collected 534 | 224 142 90 47 31 Remotely . | . . . . . Salvage Created 716 | 30 492 131 39 24 Parts 45 | 1 28 7 1 8 Haulers Intercepted 1 | . 1 . . . Recyclers Shooed . | . . . . . Parts Field Recycled . | . . . . . Retrieved Matter . | . . . . . Parts Self-Destructed . | . . . . . Prevented . | . . . . . Kills | -11 -10 -10 -10 -9 ------- Run | Yrd Mat Min Exi Min Combat Hostiles Destroyed 17 | . 9 4 . 4 Guns 10 | . 6 1 . 3 Cannons 6 | . 2 3 . 1 AOE 1 | . 1 . . . Classes Destroyed 7 | 1 5 . . 1 Builder 1 | . 1 . . . Tunneler 1 | 1 . . . . Hauler 1 | . 1 . . . Operator 1 | . 1 . . . Watcher 1 | . 1 . . . Swarmer 4 | . . . . 4 Grunt 13 | . 9 4 . . Best Kill Streak 4 | 1 3 2 . 4 Combat Bots Only 4 | . 3 2 . 4 Max Kills in Single Turn 1 | 1 1 1 . 1 Gunslinging . | . . . . . Exploded 1 | . 1 . . . Melee . | . . . . . Uniques/NPCs Destroyed . | . . . . . Combat | -11 -10 -10 -10 -9 -------- Run | Yrd Mat Min Exi Min Hostile Shots Fired 91 | . 45 15 . 31 Missed 22 | . 13 1 . 8 Damage Taken 1283 | . 501 195 . 587 Core 250 | . 81 26 . 143 Absorbed by Shields . | . . . . . Core Remaining (%) 100 | 100 . . . . Volleys Fired 68 | 9 31 13 9 6 Largest 2 | 2 2 2 2 2 Hottest 100 | 60 60 100 59 59 Shots Fired 134 | 18 62 25 18 11 Gun 101 | 18 57 12 9 5 Cannon 31 | . 5 12 9 5 Launcher 1 | . . . . 1 Special 1 | . . 1 . . Kinetic 97 | 9 36 24 18 10 Thermal 1 | . . 1 . . Explosive 1 | . . . . 1 Electromagnetic 35 | 9 26 . . . Robot Hit Streak 14 | 3 14 5 9 3 Robot Miss Streak 3 | 2 2 3 3 3 Penetration Max . | . . . . . Secondary Targets 2 | . 2 . . . Max Gunslinging Chain 1 | . 1 . . . Shots Hit Robots 91 | 11 47 16 11 6 Core Hits 47 | 1 25 9 5 7 Critical Kills . | . . . . . Critical Parts Destroyed . | . . . . . Critical Strikes 1 | . . 1 . . Blast 1 | . . 1 . . Melee Attacks . | . . . . . Impact . | . . . . . Slashing . | . . . . . Piercing . | . . . . . Sneak Attacks . | . . . . . Combat Hostiles . | . . . . . Follow-up Attacks . | . . . . . Damage Inflicted 1378 | 116 686 208 211 157 Guns 861 | 115 473 66 98 109 Cannons 369 | . 82 142 113 32 Explosions 146 | . 130 . . 16 Melee . | . . . . . Ramming 2 | 1 1 . . . Kinetic 869 | 51 258 208 211 141 Thermal 130 | . 130 . . . Explosive 16 | . . . . 16 Electromagnetic 361 | 64 297 . . . Impact . | . . . . . Slashing . | . . . . . Piercing . | . . . . . Highest Corruption . | . . . . . Average Corruption . | . . . . . Corruption Purged . | . . . . . Corruption Blocked . | . . . . . Overload Shots . | . . . . . Overflow Damage 9 | . . . 9 . Projectiles 9 | . . . 9 . Explosions . | . . . . . Melee . | . . . . . Knockbacks 5 | . . 2 3 . Impact . | . . . . . Kinetic 5 | . . 2 3 . Secondary . | . . . . . Self-Inflicted Damage 122 | . 81 . . 41 Shots 3 | . 2 . . 1 Rammed 3 | 1 2 . . . Targets Rammed 3 | 1 2 . . . Kicked . | . . . . . Crushed . | . . . . . Highest Temperature 144 | 40 144 85 28 . Average Temperature 37 | 23 46 32 12 . Received Heat Transfer 387 | . 267 120 . . Siege Activations . | . . . . . Robots Corrupted . | . . . . . Combat Hostiles . | . . . . . Parts Fried 2 | 1 1 . . . Impact Corruptions . | . . . . . Robots Melted . | . . . . . Combat Hostiles . | . . . . . Parts Melted . | . . . . . Heat Transferred 150 | . 150 . . . Parts Sabotaged . | . . . . . Parts Stolen . | . . . . . Parts Stripped . | . . . . . Power Chain Reactions 3 | . 3 . . . Alert | -11 -10 -10 -10 -9 ------- Run | Yrd Mat Min Exi Min Peak Influence 141 | 5 141 133 . 130 Initial 27 | . 3 27 . . Average 63 | 1 55 80 . 90 Maximum Alert Level . | . . . . . Low Security (%) 100 | 100 100 100 . 100 Level 1 . | . . . . . Level 2 . | . . . . . Level 3 . | . . . . . Level 4 . | . . . . . Level 5 . | . . . . . High Security . | . . . . . Max Security . | . . . . . Squads Dispatched 2 | . 2 . . . Investigation 1 | . 1 . . . Extermination . | . . . . . Reinforcement 1 | . 1 . . . Assault . | . . . . . Garrison . | . . . . . Intercept . | . . . . . Searches Triggered . | . . . . . Construction Impeded . | . . . . . Haulers Reinforced . | . . . . . Active Scanning Responses . | . . . . . Cargo Convoy Interrupts . | . . . . . Stealth | -11 -10 -10 -10 -9 --------- Run | Yrd Mat Min Exi Min Distress Signals 1 | . 1 . . . Communications Jammed . | . . . . . Distress Signals . | . . . . . Times Spotted 29 | . 14 6 . 9 Peak Tracking Total 5 | . 3 2 . 5 Tactical Retreats . | . . . . . Traps | -11 -10 -10 -10 -9 ------- Run | Yrd Mat Min Exi Min Traps Triggered 1 | . 1 . . . Indirectly . | . . . . . Trap Hack Attempts . | . . . . . Triggered . | . . . . . Disarmed . | . . . . . Reprogrammed . | . . . . . Reused . | . . . . . Traps Extracted . | . . . . . Installed . | . . . . . Triggered . | . . . . . Machines | -11 -10 -10 -10 -9 ---------- Run | Yrd Mat Min Exi Min Machines Disabled 1 | . 1 . . . Max in Single Turn 1 | . 1 . . . Machines Repaired . | . . . . . Machines Dismantled . | . . . . . Machines Sabotaged . | . . . . . Overloaded Fab Kills . | . . . . . Hacking | -11 -10 -10 -10 -9 --------- Run | Yrd Mat Min Exi Min Machines Accessed 8 | . 8 . . . Terminals 7 | . 7 . . . Fabricators . | . . . . . Repair Stations . | . . . . . Recycling Units 1 | . 1 . . . Scanalyzers . | . . . . . Garrison Access . | . . . . . Total Hacks 14 | . 14 . . . Successful 4 | . 4 . . . Failed 10 | . 10 . . . Catastrophic 2 | . 2 . . . Database Lockouts . | . . . . . Manual 14 | . 12 . 2 . Terminals 13 | . 13 . . . Fabricators . | . . . . . Repair Stations . | . . . . . Recycling Units 1 | . 1 . . . Scanalyzers . | . . . . . Garrison Access . | . . . . . Terminal Hacks 3 | . 3 . . . Prototype ID Bank 1 | . 1 . . . Terminal Index 1 | . 1 . . . Alert Level 1 | . 1 . . . Fabricator Hacks . | . . . . . Repair Station Hacks . | . . . . . Recycling Unit Hacks 1 | . 1 . . . Report Inventory 1 | . 1 . . . Scanalyzer . | . . . . . Garrison Access Hacks . | . . . . . Unauthorized Hacks . | . . . . . Terminals . | . . . . . Fabricators . | . . . . . Repair Stations . | . . . . . Recycling Units . | . . . . . Scanalyzers . | . . . . . Garrison Access . | . . . . . Data Cores Recovered . | . . . . . Used . | . . . . . Hacking Detections 5 | . 5 . . . Full Trace Events 1 | . 1 . . . Feedback Events . | . . . . . Feedback Blocked . | . . . . . Robot Schematics Acquired . | . . . . . Robots Built . | . . . . . Authchips . | . . . . . Time . | . . . . . Total Robot Build Rating . | . . . . . Part Schematics Acquired . | . . . . . Parts Built . | . . . . . Authchips . | . . . . . Time . | . . . . . Total Part Build Rating . | . . . . . Parts Repaired . | . . . . . Time . | . . . . . Parts Recycled . | . . . . . Recycled Matter . | . . . . . Retrieved Matter . | . . . . . Retrieved Components . | . . . . . Parts Scanalyzed . | . . . . . Part Schematics Acquired . | . . . . . Parts Damaged . | . . . . . Bothacking | -11 -10 -10 -10 -9 ------------ Run | Yrd Mat Min Exi Min Used RIF Installer . | . . . . . Robots Hacked . | . . . . . Non-combat . | . . . . . Combat . | . . . . . Robot Hacks Applied . | . . . . . Relay Couplers Released . | . . . . . Fabnet Peak Effective % . | . . . . . Robots Rewired . | . . . . . Allies Hacked . | . . . . . Hacks Repelled . | . . . . . Allies | -11 -10 -10 -10 -9 -------- Run | Yrd Mat Min Exi Min Total Allies . | . . . . . Largest Group . | . . . . . Highest-Rated Group . | . . . . . Highest-Rated Ally . | . . . . . Total Orders . | . . . . . Ally Attacks . | . . . . . Total Damage . | . . . . . Kills . | . . . . . Allies Corrupted . | . . . . . Allies Melted . | . . . . . Intel | -11 -10 -10 -10 -9 ------- Run | Yrd Mat Min Exi Min Robot Analysis Total . | . . . . . Derelict Logs Recovered 1 | . . 1 . . Drone Launches . | . . . . . Drone Recoveries . | . . . . . Exploration | -11 -10 -10 -10 -9 ------------- Run | Yrd Mat Min Exi Min Turns Passed 2950 | 113 1155 447 927 308 Spaces Moved 1707 | 49 625 312 608 113 Core 16 | 14 . . 2 . Treads 1179 | 35 625 4 402 113 Legs 512 | . . 308 204 . Wheels . | . . . . . Hover . | . . . . . Flight . | . . . . . Fastest Speed 50 | 50 160 120 120 160 Average Speed 147 | 137 160 120 147 160 Slowest Speed 300 | 160 160 160 300 160 Overloaded Moves . | . . . . . Propulsion Burnouts . | . . . . . Robots Hopped . | . . . . . Cave-ins Triggered . | . . . . . Exploration Rate (%) 55 | 5 86 73 91 21 Regions Visited 4 Branch Regions 3 Pre-discovered Areas 1 | . . . . 1 Known Exits Taken . | . . . . . Unknown Exits Taken 4 | 1 1 1 1 . Scrap Searched 2 | . . 1 . 1 Spaces Dug 1 | . . 1 . . Terrain Destroyed 20 | . 9 1 . 10 Melee . | . . . . . Projectile 1 | . . 1 . . AOE 19 | . 9 . . 10 Terrain Rammed . | . . . . . Walls Destroyed . | . . . . . Machines Disabled . | . . . . . Actions | -11 -10 -10 -10 -9 --------- Run | Yrd Mat Min Exi Min Total 2013 | 74 725 360 625 229 Wait 176 | 5 45 19 . 107 Move 1703 | 48 624 311 607 113 Hop . | . . . . . Pick Up 25 | 4 12 7 1 1 Fast Attach 10 | 6 1 . 3 . Attach 5 | . 2 3 . . Detach . | . . . . . Swap 6 | 1 2 2 . 1 Drop 16 | . 6 5 4 1 Fire 68 | 9 31 13 9 6 Melee . | . . . . . Ram 1 | 1 . . . . Kick . | . . . . . Crush 2 | . 2 . . . Escape Stasis . | . . . . . Rewire 1 | . . . 1 . Trap . | . . . . . Miscellaneous . | . . . . . Route ------- -11/Scrapyard -10/Materials (discovered 4 exits: [*Mat x3] / [*Min]) -10/Mines (discovered 3 exits: [*Mat x2] / *Exi) -10/Exiles (discovered 2 exits: [*Min x2]) -9/Mines History --------- Turn | Location | Event 8 | -11/Scrapyard | Discovered new exit (range 16) 114 | -11/Scrapyard | Entered Materials 305 | -10/Materials | Build established: Mutant 412 | -10/Materials | Discovered new exit (range 4) 514 | -10/Materials | Discovered new exit (range 16) 658 | -10/Materials | Discovered new exit (range 14) 1258 | -10/Materials | Discovered new exit (range 8) 1269 | -10/Materials | Entered Mines 1381 | -10/Mines | Discovered new exit (range 8) 1577 | -10/Mines | Found a hidden stash of uninstalled traps 1601 | -10/Mines | Discovered new exit (range 16) 1605 | -10/Mines | Learned 4 Materials zone layouts 1623 | -10/Mines | Joined a pair of Derelicts in attacking an 0b10 outpost 1673 | -10/Mines | Received a Rocket Launcher from a helpful Derelict 1708 | -10/Mines | Deemed a non-threat by the Exiles lab entrance 1709 | -10/Mines | Discovered new exit (range 5) 1716 | -10/Mines | Entered Exiles 1716 | -10/Exiles | Found Exiles lab destroyed 1733 | -10/Exiles | Discovered new exit (range 15) 2443 | -10/Exiles | Discovered new exit (range 14) 2643 | -10/Exiles | Entered Mines 2717 | -9/Mines | Learned location of Storage (-8) 2898 | -9/Mines | Assembled infested the area 2903 | -9/Mines | Assisted by a Guerilla fighting off Assembled 2931 | -9/Mines | Core integrity fell below 50% 2946 | -9/Mines | Core integrity fell below 20% 2951 | -9/Mines | Destroyed by D-53 Grenadier with Mini Grenade Launcher Last Messages --------------- Demolisher response squad. T-07 Excavator destroyed. A derelict emerges from the shadows: "You need to get out of here! I've been tracking a group of Assembled to figure out where they're coming from, and they're closing on this area, come on!" U-05 Engineer suffers critical hit (Destroy). U-05 Engineer destroyed. 32-JY8(h): "I'll hold them off! Go on ahead or try to find another way!" R-06 Scavenger destroyed. HV Slug penetrates Wall. 32-JY8(h) destroyed. as-03303 destroyed. as-65993 destroyed. as-04958 destroyed. The unstable cave ceiling collapses. Rocket Launcher destroyed. Mak. Shrapnel Gun destroyed. Map ----- +----------------------------------------------------+ | ?????????????????????????????????????????????????? | | ?????????????????????????????????????????????????? | | ?????????????????????????????????????????????????? | | ?????????????????????????????????????????????????? | | ?????????????????????????????????????????????????? | | ?????????????????????????????????????????????????? | | ?????????????????????????????????????????????????? | | ?????????????????????????????????????????????????? | | ?????????????????????????????????????????????????? | | ?????????????????????????????????????????????????? | | ????????????????????????? ???????????????????????? | | ????????????????????????? ##?????????????????????? | | ?????????????????????????a #?????????????????????? | | ????????????????????????? ?????????????????????? | | ????????????????????????? ?????????????????????? | | ????????????????????????? ?????????????????????? | | ????????????????????????? #?????????????????????? | | ????????????????????????# #?????????????????????? | | ???????????????????????? #?????????????????????? | | ???????????????????????? ##????????????????????? | | ????????????????????????# ##???????????????????? | | ?? ????????????????###* #???????????????????? | | ? ??????????????## %= #???????????????????? | | ???????????????# | #???????????????????? | | ?????????????### ##???????????????????? | | ????????????## @ #????#####??????????? | | ????????????# ##??### ##?????????? | | ? %! ##???????????# #??## #?????????? | | ? #????????### #??# #?????????? | | ?# % #?????### ##??# ########??? | | ?# % ??### # #???# ## #??? | | ?# ## #??## #??? | | ?# # # d ##### #??? | | ?# % d ### # #??? | | ?# [ = ##### ##??? | | ## % ######???###???? | | ### ##??????????????? | | # # #?## ##???????????????? | | #########?## ##??#####????????????????? | | ???????????## # ######????????????????????????? | | ????????????########?????????????????????????????? | | | | | | | | | | | | | | | | | | | +----------------------------------------------------+ Best States ------------- Heat Dissipation 25 Energy Generation 10 Energy Capacity 125 Matter Stores 300 Matter Capacity 300 Sight Range 16 Terrain Scan Density 10 Evasion (%) 55 Targeting Accuracy 5 Recoil Reduction 2 Item Schematics ----------------- None Robot Schematics ------------------ None Fabricated ------------ Nothing Alien Tech Used ----------------- None Achievements -------------- None Challenges ------------ None Game ------ Seed BoreMappingBarrier Manual? 0 Play Time 00:21:22 Cumulative 24.0 hours Start 2024.05.08 @ 22:07:52 End 2024.05.08 @ 22:26:44 Sessions 1 Manual Loads 0 Difficulty Rogue Special Mode None Game No. 42 Rogue 42 Adventurer 0 Explorer 0 Win Type - Total 0 Types 0/0/0/0/0/0/0/0/0 Lore% 25 Gallery% 27 Achievement% 24 Wizard Run 0 Options --------- Layout 1 ASCII 0 Keyboard 0 Movement Numpad Keybinds 0 Fullscreen 2 Font 32/SmallcapsGlow Map View 50x35 Zoom Use 0% Tactical HUD 0 Map Filters NONE Filters NONE Steam 1 RUN: f232cf33-3031-495e-94ec-b660f1246257